Workbook

Sheet Tool
A1: Voltages | H1: **Hysteresis may be Susceptible to Minor Tolerance Errors**
A2: Vcc (V) | B2: Vdiv (V) | C2: Vpu (V) | D2: Vh (V) | E2: Vl (V) | F2: Vhyst_int (mV) | G2: Vin,max (V) | H2: **R3 cannot be zero or have a negative value.**
A3: 3.3 | B3: 3.3 | C3: 3.3 | D3: 4.2 | E3: 2 | F3: 0 | G3: 18.5 | H3: **Inputs can only be numbers, no text. (e.g. no 'k' for 1000)**
H4: **Check input parameters for incorrect voltage values**
C5: Modes | H5: **Consider Modifying RB, RA, or Increasing Total Hysteresis**
C6: Output Stage | D6: Resistor Range | E6: Comparator Configuration | H6: =IF(G3<D3,"Maximum Input Is less than High Threshold",_xlfn.CONCAT("**Maximum voltage is greater than Vcc/2",IF(behind_the_scenes!B34="LOW"," Consider Changing the Input Voltage Range**"," Consider Droping the Input Voltage**"))) -> **Maximum voltage is greater than Vcc/2 Consider Droping the Input Voltage**
C7: OD | D7: 100kΩ | E7: NON | I7: INPUT | K7: OUTPUT
A9: Resistors
A10: R1 (Ω) | B10: R2 (Ω) | C10: R3 (Ω) | D10: R4 (Ω) | E10: R5 (Ω) | F10: RA (Ω) | G10: RB (Ω)
A11: =IF(AND(behind_the_scenes!B34="HIGH",E7="NON"),IF(AND($E$7="NON",NOT(behind_the_scenes!$D$34),NOT(behind_the_scenes!C34="RA, RB")),0,behind_the_scenes!$E$28),IF(Tool!$E$7="INV", behind_the_scenes!$B$5*$B$11*$D$11/($B$11+$D$11), behind_the_scenes!$B$2)) -> 0 | B11: =IF($D$7="MΩ", 1000000, IF($D$7="10kΩ", 10000, 100000)) -> 100000 | C11: 10000 | D11: =IF(AND($E$7="NON",NOT(behind_the_scenes!$D$34),behind_the_scenes!$B$34="HIGH"),IF(behind_the_scenes!C34="RA, RB",behind_the_scenes!G28,behind_the_scenes!$I$22),IF(behind_the_scenes!$B$34="LOW",IF($E$7="INV", behind_the_scenes!$I$5, behind_the_scenes!$E$2),IF($E$7="INV",behind_the_scenes!$I$5,behind_the_scenes!$G$28))) -> 837963.6094 | E11: =IF($D$7="MΩ", 1000000, IF($D$7="10kΩ", 10000, 100000)) -> 100000 | F11: =IF(AND($E$7="NON",NOT(behind_the_scenes!$D$34)),behind_the_scenes!$D$22,behind_the_scenes!$C$28) -> 72559.74527 | G11: =IF(AND($E$7="NON",NOT(behind_the_scenes!$D$34)),behind_the_scenes!$H$22,behind_the_scenes!$D$28) -> 7105.256955
A14: INPUT SUBSTITUTION | D14: SCHEMATIC | H14: TRANSFER CURVE
A32: References
A33: Inverting Comparator Example Solution
A34: Non-Inverting Comparator Example Solution

Sheet behind_the_scenes (hidden)
A1: Vth | B1: R1 (Ώ) | C1: R2 (Ώ) | D1: R3 (Ώ) | E1: R4 (Ώ) | F1: R5 (Ώ) | G1: X^2 (Vpu or Vcc) | H1: X | I1: 1 | J1: Root | K1: Non-inverting solution | M1: OD and PP NON-INV | N1: Ra | O1: Rb | P1: R1 | Q1: RB/RA | R1: Req | T1: R4 | U1: R5 | W1: Vh,new | X1: Vl,new | Y1: Total Hyst
A2: =(behind_the_scenes!$A$28-0.5*Tool!$F$3/1000)*behind_the_scenes!$C$2/(behind_the_scenes!$C$2+behind_the_scenes!$B$2) -> 0.3518260162 | B2: =$J$2 -> 6471.544848 | C2: =Tool!$B$11 -> 100000 | D2: =IF(Tool!$C$7="OD",Tool!$C$11,0) -> 10000 | E2: =$F$2*(Tool!$B$3-behind_the_scenes!$A$2)/behind_the_scenes!$A$2 -> 837963.6094 | F2: =IF(Tool!$E$7="NON",Tool!$E$11, 0) -> 100000 | G2: =IF(Tool!$C$7="OD",Tool!$C$3,Tool!$A$3) -> 3.3 | H2: =$G$2*Tool!$B$11+(behind_the_scenes!$B$28+0.5*Tool!$F$3/1000)*($D$2+Tool!$B$11)-(behind_the_scenes!$A$28-0.5*Tool!$F$3/1000)*Tool!$B$11 -> 312162.1622 | I2: =((behind_the_scenes!$B$28+0.5*Tool!$F$3/1000)-(behind_the_scenes!$A$28-0.5*Tool!$F$3/1000))*(Tool!$B$11^2+$D$2*Tool!$B$11) -> -2158378378 | J2: =(-$H$2+SQRT($H$2*$H$2-4*$G$2*$I$2))/(2*$G$2) -> 6471.544848 | M2: With R1, Set RA and RB | N2: =Tool!$F$12 -> 0 | O2: =Tool!$G$12 -> 0 | P2: =$J$2-behind_the_scenes!$N$2*behind_the_scenes!$O$2/(behind_the_scenes!$N$2+behind_the_scenes!$O$2) ->  | Q2: =behind_the_scenes!$O$2/behind_the_scenes!$N$2 ->  | R2: =$J$2 -> 6471.544848 | S2: With R1 | T2: =behind_the_scenes!$U$2*Tool!$B$3*(Tool!$B$11+$J$2)*(behind_the_scenes!$N$2+behind_the_scenes!$O$2)/(Tool!$B$11*behind_the_scenes!$O$2*Tool!$D$3)-behind_the_scenes!$U$2 ->  | U2: =IF(Tool!$D$7="MΩ", 1000000, IF(Tool!$D$7="10kΩ", 10000, 100000)) -> 100000 | V2: With R1 | W2: =Tool!$D$3*behind_the_scenes!$Q$3/(behind_the_scenes!$Q$3+1) -> 0.3745945946 | X2: =Tool!$E$3*behind_the_scenes!$Q$3/(behind_the_scenes!$Q$3+1) -> 0.1783783784 | Y2: =behind_the_scenes!$W$2-behind_the_scenes!$X$2 -> 0.1962162162
M3: Without R1, Set Rb/Ra | N3: =behind_the_scenes!$R$3*(behind_the_scenes!$Q$3+1)/behind_the_scenes!$Q$3 -> 72559.74527 | O3: =behind_the_scenes!$N$3*behind_the_scenes!$Q$3 -> 7105.256955 | P3: 0 | Q3: =Tool!$A$3*behind_the_scenes!$I$28/(Tool!$G$3-Tool!$A$3*behind_the_scenes!$I$28) -> 0.09792284866 | R3: =$J$2 -> 6471.544848 | S3: Without R1 | T3: =behind_the_scenes!$U$3*Tool!$B$3*(Tool!$B$11+$J$2)*(behind_the_scenes!$N$3+behind_the_scenes!$O$3)/(Tool!$B$11*behind_the_scenes!$O$3*Tool!$D$3)-behind_the_scenes!$U$3 -> 837963.6094 | U3: =IF(Tool!$D$7="MΩ", 1000000, IF(Tool!$D$7="10kΩ", 10000, 100000)) -> 100000 | V3: Without R1, Set Rb/Ra | W3: =Tool!$D$3*behind_the_scenes!$O$2/(behind_the_scenes!$N$2+behind_the_scenes!$O$2) ->  | X3: =Tool!$E$3*behind_the_scenes!$O$2/(behind_the_scenes!$N$2+behind_the_scenes!$O$2) ->  | Y3: =behind_the_scenes!$W$3-behind_the_scenes!$X$3 -> 
B4: A | C4: B | D4: C | E4: D | F4: X^2 | G4: X | H4: 1 | I4: root | K4: Inverting Solution | M4: Set RB | N4: =$O$4/$Q$4 -> 0 | O4: =Tool!$G$12 -> 0 | P4: =$R$4-$O$4/($Q$4+1) -> 6471.544848 | Q4: =Tool!$A$3*behind_the_scenes!$I$28/(Tool!$G$3-Tool!$A$3*behind_the_scenes!$I$28) -> 0.09792284866 | R4: =$J$2 -> 6471.544848 | S4: Set RB | T4: =behind_the_scenes!$U$4*Tool!$B$3*(Tool!$B$11+$J$2)*(behind_the_scenes!$N$4+behind_the_scenes!$O$4)/(Tool!$B$11*behind_the_scenes!$O$4*Tool!$D$3)-behind_the_scenes!$U$4 ->  | U4: =IF(Tool!$D$7="MΩ", 1000000, IF(Tool!$D$7="10kΩ", 10000, 100000)) -> 100000 | V4: Set RB | W4: =Tool!$D$3*behind_the_scenes!$O$4/(behind_the_scenes!$N$4+behind_the_scenes!$O$4) ->  | X4: =Tool!$E$3*behind_the_scenes!$O$4/(behind_the_scenes!$O$4+behind_the_scenes!$N$4) ->  | Y4: =behind_the_scenes!$W$4-behind_the_scenes!$X$4 -> 
B5: =Tool!$B$3/(behind_the_scenes!$B$28+0.5*Tool!$F$3/1000)-1 -> 17.5 | C5: =Tool!$B$3-(behind_the_scenes!$A$28 - 0.5*Tool!$F$3/1000) -> 2.925405405 | D5: =(behind_the_scenes!$A$28-0.5*Tool!$F$3/1000)/Tool!$B$11 -> 3.745945946e-06 | E5: =$G$2-(behind_the_scenes!$A$28-0.5*Tool!$F$3/1000) -> 2.925405405 | F5: =behind_the_scenes!$C$5/behind_the_scenes!$B$5-behind_the_scenes!$D$5*Tool!$B$11 -> -0.2074285714 | G5: =(behind_the_scenes!$C$5/behind_the_scenes!$B$5)*(Tool!$B$11+$D$2)-behind_the_scenes!$D$5*$D$2*Tool!$B$11+behind_the_scenes!$E$5*Tool!$B$11 -> 307182.8571 | H5: =(behind_the_scenes!$C$5/behind_the_scenes!$B$5)*Tool!$B$11*$D$2 -> 167166023.2 | I5: =(-behind_the_scenes!$G$5-SQRT(behind_the_scenes!$G$5*behind_the_scenes!$G$5-4*behind_the_scenes!$F$5*behind_the_scenes!$H$5))/(2*behind_the_scenes!$F$5) -> 1481453.082 | M5: Set RA | N5: =Tool!$F$12 -> 0 | O5: =$N$5*$Q$5 -> 0 | P5: =$R$5-$N$5/(1+1/$Q$5) -> 6471.544848 | Q5: =Tool!$A$3*behind_the_scenes!$I$28/(Tool!$G$3-Tool!$A$3*behind_the_scenes!$I$28) -> 0.09792284866 | R5: =$J$2 -> 6471.544848 | S5: Set RA | T5: =behind_the_scenes!$U$5*Tool!$B$3*(Tool!$B$11+$J$2)*(behind_the_scenes!$N$5+behind_the_scenes!$O$5)/(Tool!$B$11*behind_the_scenes!$O$5*Tool!$D$3)-behind_the_scenes!$U$5 ->  | U5: =IF(Tool!$D$7="MΩ", 1000000, IF(Tool!$D$7="10kΩ", 10000, 100000)) -> 100000 | V5: Set RA | W5: =Tool!$D$3*behind_the_scenes!$O$5/(behind_the_scenes!$N$5+behind_the_scenes!$O$5) ->  | X5: =Tool!$E$3*behind_the_scenes!$O$5/(behind_the_scenes!$O$5+behind_the_scenes!$N$5) ->  | Y5: =behind_the_scenes!$W$5-behind_the_scenes!$X$5 -> 
M6: PP and OD INV | N6: Ra | O6: Rb | P6: RB/RA | Q6: RA + RB | W6: Vh,new | X6: Vl,new | Y6: Total Hyst
M7: Set RA and RA+RB | N7: =Tool!$F$12 -> 0 | O7: =$Q$7-$N$7 -> 0 | P7: =$O$7/$N$7 ->  | Q7: =Tool!$H$12 -> 0 | V7: Set RA and Req | W7: =Tool!$D$3*behind_the_scenes!$O$7/(behind_the_scenes!$N$7+behind_the_scenes!$O$7) ->  | X7: =Tool!$E$3*behind_the_scenes!$O$7/(behind_the_scenes!$N$7+behind_the_scenes!$O$7) ->  | Y7: =$W$7-$X$7 -> 
B8: Power Options | C8: Out Stage Options | D8: Comp mode options | E8: Image Combo | F8: Input Impedance Options | G8: Select Input INV | H8: Input IMG | I8: RB/RA Preset Alternative Text | M8: Set RB | N8: =$Q$8-$O$8 -> 0 | O8: =Tool!$G$12 -> 0 | P8: =$O$8/$N$8 ->  | Q8: =Tool!$H$12 -> 0 | V8: Set RB and Req | W8: =Tool!$D$3*behind_the_scenes!$O$8/(behind_the_scenes!$N$8+behind_the_scenes!$O$8) ->  | X8: =Tool!$E$3*behind_the_scenes!$O$8/(behind_the_scenes!$N$8+behind_the_scenes!$O$8) ->  | Y8: =$W$8-$X$8 -> 
B9: MΩ | C9: PP | D9: INV | E9: =Tool!$C$7&Tool!$E$7 -> ODNON | F9: LOW | G9: =IF(behind_the_scenes!D34,"FIND ALL","") -> FIND ALL | H9: =behind_the_scenes!$B$34 -> HIGH | I9: ="FIND ALL" -> FIND ALL | M9: Set RA and RB | N9: =Tool!$F$12 -> 0 | O9: =Tool!$G$12 -> 0 | P9: =$O$9/$N$9 ->  | Q9: =$O$9+$N$9 -> 0 | V9: Set RA and RB | W9: =Tool!$D$3*behind_the_scenes!$O$9/(behind_the_scenes!$N$9+behind_the_scenes!$O$9) ->  | X9: =Tool!$E$3*behind_the_scenes!$O$9/(behind_the_scenes!$N$9+behind_the_scenes!$O$9) ->  | Y9: =$W$9-$X$9 -> 
B10: 100kΩ | C10: OD | D10: NON | F10: HIGH | G10: =IF(behind_the_scenes!D34,"","RA, RB") ->  | M10: Set RB/RA | N10: =IF(Tool!$D$7="MΩ", 1000000, IF(Tool!$D$7="10kΩ", 10000, 100000))/(P10+1) -> 91081.08108 | O10: =$N$10*$P$10 -> 8918.918919 | P10: =Tool!$A$3*behind_the_scenes!$I$28/(Tool!$G$3-Tool!$A$3*behind_the_scenes!$I$28) -> 0.09792284866 | Q10: =$O$10+$N$10 -> 100000 | V10: Set RB/RA | W10: =Tool!$D$3*behind_the_scenes!$O$10/(behind_the_scenes!$N$10+behind_the_scenes!$O$10) -> 0.3745945946 | X10: =Tool!$E$3*behind_the_scenes!$O$10/(behind_the_scenes!$N$10+behind_the_scenes!$O$10) -> 0.1783783784 | Y10: =$W$10-$X$10 -> 0.1962162162 | Z10: RB/RA set such that Req = dynamic selection value. EX: 10k, 100k, 1M
B11: 10kΩ | G11: =IF(Tool!$E$7="INV",IF(behind_the_scenes!D34,"","RA+RB, RA"),IF(NOT(behind_the_scenes!D34),"","RA")) -> RA
G12: =IF(Tool!$E$7="INV",IF(behind_the_scenes!$D$34,"","RA+RB, RB"),"RB") -> RB
A16: OD-NON EXTRA
A17: In this section, we calculate RA and RB directly by using the thevanin relationship in the cookbook equations for the non-inverting configuration
A18: Find R4 WRT: | D18: Vh | E18: Vl
A19: RA Calculated | B19: =$C$19*Tool!$B$3*(Tool!$B$11+$J$22)*($D$22+Tool!$G$12)/(Tool!$B$11*Tool!$G$12*Tool!$D$3)-$C$19 ->  | C19: =IF(Tool!$D$7="MΩ", 1000000, IF(Tool!$D$7="10kΩ", 10000, 100000)) -> 100000 | D19: =Tool!$D$3*Tool!$G$12/(Tool!$G$12+$D$22)+Tool!F3/1000 ->  | E19: =Tool!$E$3*Tool!$G$12/(Tool!$G$12+$D$22)-Tool!F3/1000 -> 
A20: RB Calculated | B20: =$C$20*Tool!$B$3*(Tool!$B$11+$J$22)*($H$22+Tool!$F$12)/(Tool!$B$11*Tool!$D$3*$H$22)-$C$20 ->  | C20: =IF(Tool!$D$7="MΩ", 1000000, IF(Tool!$D$7="10kΩ", 10000, 100000)) -> 100000 | D20: =Tool!$D$3*$H$22/(Tool!$F$12+$H$22)+Tool!F3/1000 ->  | E20: =Tool!$E$3*$H$22/(Tool!$F$12+$H$22)-Tool!F3/1000 -> 
A21: X^2 | B21: X | C21: 1 | D21: RA | E21: X^2 | F21: X | G21: 1 | H21: RB | I21: R4 | J21: Req
A22: =$G$2*Tool!$G$12*(Tool!$G$12+$C$2) -> 0 | B22: =$C$2*Tool!$G$12*(Tool!$G$12+$C$2+$D$2)*(Tool!$E$3-Tool!$D$3)+Tool!$G$12^2*($D$2*Tool!$E$3+$C$2*$G$2) -> 0 | C22: =$C$2*Tool!$G$12^2*($C$2+$D$2)*(Tool!$E$3-Tool!$D$3) -> 0 | D22: =(-$B$22+SQRT($B$22^2-4*$A$22*$C$22))/(2*$A$22) ->  | E22: =$C$2*($C$2+$D$2+Tool!$F$12)*(Tool!$E$3-Tool!$D$3)+Tool!$F$12*($D$2*Tool!$E$3+($C$2+Tool!$F$12)*$G$2) -> -2.42e+10 | F22: =$C$2*Tool!$F$12*((behind_the_scenes!$C$2+behind_the_scenes!$D$2)*(Tool!$E$3-Tool!$D$3)+behind_the_scenes!$G$2*Tool!$F$12) -> 0 | G22: 0 | H22: =(-F22)/(E22) -> 0 | I22: =IF(behind_the_scenes!$C$34="RB",behind_the_scenes!$B$19,behind_the_scenes!$B$20) ->  | J22: =IF(behind_the_scenes!$C$34="RB",Tool!$G$12*behind_the_scenes!$D$22/(behind_the_scenes!$D$22+Tool!$G$12),IF(behind_the_scenes!$C$34="RA",Tool!$F$12*behind_the_scenes!$H$22/(behind_the_scenes!$H$22+Tool!$F$12),$J$2)) -> 6471.544848
C23: Rb/Ra | D23: =Tool!$G$12/behind_the_scenes!$D$22 ->  | E23: =$C$2*($C$2+Tool!$F$12)*(Tool!$E$3-Tool!$D$3)+Tool!$F$12*(($C$2+Tool!$F$12)*$G$2) -> -22000000000 | G23: Rb/Ra | H23: =$H$22/Tool!$F$12 -> 
C24: RB | D24: =Tool!$G$12 -> 0 | E24: =Tool!$F$12*(($C$2+Tool!$F$12)*$G$2) -> 0 | G24: RA | H24: =Tool!$F$12 -> 0
A26: In this section we use the thevanin equations by building off of the previously used equations directly. This allows us to set a limit such that the thevanin voltage avoids going beyond a percentage of Vcc
A27: Vh and Vl respectively | C27: RA Used | D27: RB Used | E27: R1 Used NON only | F27: RB/RA | G27: R4 NEW | H27: Req or RA+RB | I27: Vinmax % limit WRT Vcc
A28: =IF(behind_the_scenes!$B$34="LOW",Tool!$D$3,IF(AND(Tool!$E$7="NON",OR(behind_the_scenes!$C$34="FIND ALL",behind_the_scenes!$C$34="RB",behind_the_scenes!$C$34="RA")),Tool!$D$3*$F$28/($F$28+1),Tool!$D$3*$D$28/($C$28+$D$28))) -> 0.3745945946 | B28: =IF(behind_the_scenes!$B$34="LOW",Tool!$E$3,IF(AND(Tool!$E$7="NON",OR(behind_the_scenes!C34="FIND ALL",behind_the_scenes!C34="RB",behind_the_scenes!C34="RA")),Tool!$E$3*$F$28/($F$28+1),Tool!$E$3*$D$28/($C$28+$D$28))) -> 0.1783783784 | C28: =IF(Tool!$E$7="INV",IF(behind_the_scenes!$C$34="RA+RB, RA",$N$7,IF(behind_the_scenes!$C$34="RA+RB, RB",$N$8,IF(behind_the_scenes!$C$34="RA, RB",$N$9,$N$10))),IF(behind_the_scenes!$C$34="RA, RB",$N$2,IF(behind_the_scenes!$C$34="FIND ALL",$N$3,IF(behind_the_scenes!$C$34="RB",$N$4,$N$5)))) -> 72559.74527 | D28: =IF(Tool!$E$7="INV",IF(behind_the_scenes!$C$34="RA+RB, RA",$O$7,IF(behind_the_scenes!$C$34="RA+RB, RB",$O$8,IF(behind_the_scenes!$C$34="RA, RB",$O$9,$O$10))),IF(behind_the_scenes!$C$34="RA, RB",$O$2,IF(behind_the_scenes!$C$34="FIND ALL",$O$3,IF(behind_the_scenes!$C$34="RB",$O$4,$O$5)))) -> 7105.256955 | E28: =IF(behind_the_scenes!$C$34="RA, RB",$P$2,IF(behind_the_scenes!$C$34="FIND ALL",$P$3,IF(behind_the_scenes!$C$34="RB",$P$4,$P$5))) -> 0 | F28: =IF(Tool!$E$7="INV",IF(behind_the_scenes!$C$34="RA+RB, RA",$P$7,IF(behind_the_scenes!$C$34="RA+RB, RB",$P$8,IF(behind_the_scenes!$C$34="RA, RB",$P$9,$P$10))),IF(behind_the_scenes!$C$34="RA, RB",$Q$2,IF(behind_the_scenes!$C$34="FIND ALL",$Q$3,IF(behind_the_scenes!$C$34="RB",$Q$4,$Q$5)))) -> 0.09792284866 | G28: =IF(behind_the_scenes!$C$34=behind_the_scenes!$G$9,behind_the_scenes!$T$3,IF(behind_the_scenes!$C$34=behind_the_scenes!$G$10,behind_the_scenes!$T$2,IF(behind_the_scenes!$C$34=behind_the_scenes!$G$11,behind_the_scenes!$T$5,behind_the_scenes!$T$4))) -> 837963.6094 | H28: =IF(Tool!$E$7="INV",IF(behind_the_scenes!$C$34="RA+RB, RA",$Q$7,IF(behind_the_scenes!$C$34="RA+RB, RB",$Q$8,IF(behind_the_scenes!$C$34="RA, RB",$Q$9,$Q$10))),IF(behind_the_scenes!$C$34="RA, RB",$R$2,IF(behind_the_scenes!$C$34="FIND ALL",$R$3,IF(behind_the_scenes!$C$34="RB",$R$4,$R$5)))) -> 6471.544848 | I28: 0.5
B29: (mV) | C29: Have the vl and vh values reference the appropriate values above
A30: Vh-Vl[th]= | B30: =IF(AND(behind_the_scenes!B34="HIGH",NOT(behind_the_scenes!D34)),IF(behind_the_scenes!C34="RA",(behind_the_scenes!$D$19-behind_the_scenes!$E$19)*1000,(behind_the_scenes!$D$20-behind_the_scenes!$E$20)*1000),($A$28-$B$28)*1000) -> 196.2162162
A31: This portion of the calculations derive the output such that RA and RB are preset values (t = 0) to avoid circular references
B33: Input Voltge Range | C33: Resistor Configuration | D33: Drop Input Voltge
B34: =IF(Tool!G3>Tool!A3/2,"HIGH","LOW") -> HIGH | C34: FIND ALL | D34: TRUE
A41: Factor Rb
A42: Factor Ra
F44: =$C$2^2*Tool!$F$12*Tool!$E$3-behind_the_scenes!$C$2^2*Tool!$F$12*Tool!$D$3+behind_the_scenes!$C$2*behind_the_scenes!$G$2*Tool!$F$12^2-behind_the_scenes!$C$2*behind_the_scenes!$D$2*Tool!$D$3*Tool!$F$12+behind_the_scenes!$C$2*behind_the_scenes!$D$2*Tool!$E$3*Tool!$F$12 -> 0 | G44: Vh | H44: Vl | I44: RA
F45: =-F44/E44 ->  | G45: D | H45: E | I45: G12
G46: RB | H46: R2 | I46: R3
G47: H12 | H47: C | I47: D
B64: ** Equation Above Is longer than Shown
B84: **Equation above is longer than shown in the image

Sheet Images (hidden)
A1: TYPE_CONFIG | B1: HYST_IM | C1: COMP_CONFIG | D1: SCHEMATIC_IM | E1: IN_CONFIG | F1: INPUT_IM
A2: INV | C2: PPNON | E2: LOW
A3: NON | C3: PPINV | E3: HIGH
C4: ODNON
C5: ODINV
